[Event "*** Titled Tuesday Blitz"]
[Site "Chess.com"]
[Date "2021.02.02"]
[Round "10"]
[White "Zhigalko_Sergei"]
[Black "KaterinaMiroshnik"]
[Result "1-0"]
[WhiteElo "2882"]
[BlackElo "2610"]
[TimeControl "180+1"]
[EndTime "11:57:23 PST"]
[Termination "Zhigalko_Sergei won by resignation"]

1. e4 {[%clk 0:03:00.2]} 1... e6 {[%clk 0:02:59.9]} 2. d4 {[%clk 0:02:59.9]}
2... d5 {[%clk 0:02:59.7]} 3. e5 {[%clk 0:03:00.3]} 3... c5 {[%clk 0:02:58.9]}
4. c3 {[%clk 0:03:00]} 4... Nc6 {[%clk 0:02:58.8]} 5. Nf3 {[%clk 0:03:00]} 5...
Nge7 {[%clk 0:02:59.1]} 6. Na3 {[%clk 0:02:58.9]} 6... cxd4 {[%clk 0:02:58.3]}
7. cxd4 {[%clk 0:02:59.2]} 7... Nf5 {[%clk 0:02:58.8]} 8. Nc2 {[%clk 0:02:59.4]}
8... Qb6 {[%clk 0:02:58.5]} 9. Bd3 {[%clk 0:02:59.1]} 9... Be7 {[%clk
0:02:49.2]} 10. O-O {[%clk 0:02:57.7]} 10... h6 {[%clk 0:02:45.3]} 11. Rb1
{[%clk 0:02:49.5]} 11... a5 {[%clk 0:02:40.2]} 12. g4 {[%clk 0:02:45.1]} 12...
Nh4 {[%clk 0:02:34.3]} 13. Nxh4 {[%clk 0:02:45]} 13... Bxh4 {[%clk 0:02:35.2]}
14. f4 {[%clk 0:02:35.7]} 14... Be7 {[%clk 0:02:30.3]} 15. Be3 {[%clk
0:02:31.2]} 15... Bd7 {[%clk 0:02:29]} 16. a3 {[%clk 0:02:20.2]} 16... a4 {[%clk
0:02:26.8]} 17. Qe2 {[%clk 0:02:15.5]} 17... Na5 {[%clk 0:02:25.5]} 18. f5
{[%clk 0:02:05.8]} 18... O-O-O {[%clk 0:02:08.4]} 19. Kh1 {[%clk 0:01:26.9]}
19... Nb3 {[%clk 0:02:07.2]} 20. Rbd1 {[%clk 0:01:18.8]} 20... Kb8 {[%clk
0:02:04.3]} 21. f6 {[%clk 0:00:49.4]} 21... gxf6 {[%clk 0:02:03.1]} 22. exf6
{[%clk 0:00:49.7]} 22... Bd6 {[%clk 0:02:01.5]} 23. Bf4 {[%clk 0:00:47.8]} 23...
Bxf4 {[%clk 0:01:55.7]} 24. Rxf4 {[%clk 0:00:47.4]} 24... Rdg8 {[%clk
0:01:51.8]} 25. Qe5+ {[%clk 0:00:42.7]} 25... Qc7 {[%clk 0:01:49.2]} 26. h4
{[%clk 0:00:39.5]} 26... Qxe5 {[%clk 0:01:33.1]} 27. dxe5 {[%clk 0:00:39.6]}
27... Rc8 {[%clk 0:01:32.7]} 28. Nd4 {[%clk 0:00:31]} 28... Nxd4 {[%clk
0:01:19.7]} 29. Rxd4 {[%clk 0:00:30.7]} 29... Rc5 {[%clk 0:01:19.5]} 30. Kg2
{[%clk 0:00:26.6]} 30... Bb5 {[%clk 0:01:16.7]} 31. Bxb5 {[%clk 0:00:21.5]}
31... Rxb5 {[%clk 0:01:17.6]} 32. R1d2 {[%clk 0:00:22.3]} 32... Rb3 {[%clk
0:01:06.2]} 33. Re2 {[%clk 0:00:15.2]} 33... b5 {[%clk 0:01:03.6]} 34. Rc2
{[%clk 0:00:14.4]} 34... Rg8 {[%clk 0:01:01]} 35. Rf4 {[%clk 0:00:07.8]} 35...
Re3 {[%clk 0:00:57.3]} 36. Rb4 {[%clk 0:00:06.4]} 36... Rxe5 {[%clk 0:00:55]}
37. Rxb5+ {[%clk 0:00:06.6]} 37... Ka7 {[%clk 0:00:54.6]} 38. Kf3 {[%clk
0:00:07.1]} 38... Re4 {[%clk 0:00:51.4]} 39. Rc7+ {[%clk 0:00:05.7]} 39... Ka6
{[%clk 0:00:48.5]} 40. Rb4 {[%clk 0:00:06.2]} 40... Rxb4 {[%clk 0:00:35.8]} 41.
axb4 {[%clk 0:00:05.9]} 41... Rf8 {[%clk 0:00:36.1]} 42. g5 {[%clk 0:00:04.2]}
42... hxg5 {[%clk 0:00:35.1]} 43. hxg5 {[%clk 0:00:05.1]} 43... Kb5 {[%clk
0:00:34.8]} 44. Rb7+ {[%clk 0:00:05.2]} 44... Kc4 {[%clk 0:00:32.6]} 45. Kf4
{[%clk 0:00:03.7]} 45... Kd4 {[%clk 0:00:18.9]} 46. b5 {[%clk 0:00:02.7]} 46...
e5+ {[%clk 0:00:18.5]} 47. Kf5 {[%clk 0:00:03.6]} 47... e4 {[%clk 0:00:18.7]}
48. Re7 {[%clk 0:00:03.7]} 48... e3 {[%clk 0:00:17.8]} 49. b6 {[%clk 0:00:04.1]}
49... Kd3 {[%clk 0:00:17.4]} 50. b7 {[%clk 0:00:03.8]} 50... e2 {[%clk
0:00:17.1]} 51. g6 {[%clk 0:00:04]} 51... fxg6+ {[%clk 0:00:16.3]} 52. Kxg6
{[%clk 0:00:04.9]} 52... Kd2 {[%clk 0:00:16.4]} 53. f7 {[%clk 0:00:05.1]} 53...
d4 {[%clk 0:00:15]} 54. Kg7 {[%clk 0:00:05]} 54... Rxf7+ {[%clk 0:00:15.2]} 55.
Kxf7 {[%clk 0:00:05.6]} 55... e1=Q {[%clk 0:00:15.2]} 56. Rxe1 {[%clk
0:00:05.2]} 56... Kxe1 {[%clk 0:00:16.1]} 57. b8=Q {[%clk 0:00:06]} 57... d3
{[%clk 0:00:16.5]} 58. Qe5+ {[%clk 0:00:06]} 58... Kf2 {[%clk 0:00:15.1]} 59.
Qd4+ {[%clk 0:00:06.2]} 59... Ke2 {[%clk 0:00:15]} 60. Qe4+ {[%clk 0:00:06.6]}
60... Kd2 {[%clk 0:00:15.4]} 61. Qxa4 {[%clk 0:00:07.5]} 61... Ke2 {[%clk
0:00:15]} 62. Qe4+ {[%clk 0:00:07.5]} 1-0

[Event "*** Titled Tuesday Blitz"]
[Site "Chess.com"]
[Date "2021.02.02"]
[Round "10"]
[White "GMJustin"]
[Black "LenkaPtacnikova"]
[Result "0-1"]
[WhiteElo "2281"]
[BlackElo "2134"]
[TimeControl "180+1"]
[EndTime "11:57:23 PST"]
[Termination "LenkaPtacnikova won on time"]

1. e4 {[%clk 0:02:53.6]} 1... c5 {[%clk 0:02:24.9]} 2. Nf3 {[%clk 0:02:50]} 2...
e6 {[%clk 0:02:24.3]} 3. d4 {[%clk 0:02:45.4]} 3... cxd4 {[%clk 0:02:24.5]} 4.
Nxd4 {[%clk 0:02:45.1]} 4... Nf6 {[%clk 0:02:25.1]} 5. Nc3 {[%clk 0:02:42.3]}
5... Nc6 {[%clk 0:02:25.6]} 6. Nxc6 {[%clk 0:02:31.5]} 6... bxc6 {[%clk
0:02:25.1]} 7. e5 {[%clk 0:02:31.5]} 7... Nd5 {[%clk 0:02:25.6]} 8. Ne4 {[%clk
0:02:31.4]} 8... Bb7 {[%clk 0:02:23]} 9. Be2 {[%clk 0:02:23.4]} 9... Qc7 {[%clk
0:02:13.8]} 10. Nd6+ {[%clk 0:01:55.9]} 10... Bxd6 {[%clk 0:02:12.2]} 11. exd6
{[%clk 0:01:56.8]} 11... Qa5+ {[%clk 0:01:46.8]} 12. c3 {[%clk 0:01:54.1]} 12...
c5 {[%clk 0:01:46]} 13. O-O {[%clk 0:01:52.4]} 13... Qb6 {[%clk 0:01:44]} 14. c4
{[%clk 0:01:45.4]} 14... Nf6 {[%clk 0:01:30.7]} 15. Be3 {[%clk 0:01:44]} 15...
Ne4 {[%clk 0:01:25.6]} 16. f3 {[%clk 0:01:05.9]} 16... Nxd6 {[%clk 0:01:19.3]}
17. b4 {[%clk 0:01:05]} 17... Nf5 {[%clk 0:01:06.3]} 18. Bxc5 {[%clk 0:01:04.3]}
18... Qc7 {[%clk 0:00:51.6]} 19. Bd3 {[%clk 0:00:51.9]} 19... d6 {[%clk
0:00:49.7]} 20. Bf2 {[%clk 0:00:49.5]} 20... Ne7 {[%clk 0:00:45.7]} 21. Rc1
{[%clk 0:00:46.9]} 21... Nc6 {[%clk 0:00:40.7]} 22. a3 {[%clk 0:00:43.5]} 22...
Ne5 {[%clk 0:00:38.5]} 23. Be2 {[%clk 0:00:41.8]} 23... O-O {[%clk 0:00:34]} 24.
c5 {[%clk 0:00:34]} 24... d5 {[%clk 0:00:29.6]} 25. Bg3 {[%clk 0:00:29.2]} 25...
f6 {[%clk 0:00:29.4]} 26. f4 {[%clk 0:00:26.7]} 26... Nc4 {[%clk 0:00:20]} 27.
f5 {[%clk 0:00:12.4]} 27... e5 {[%clk 0:00:18.7]} 28. Bxc4 {[%clk 0:00:12.2]}
28... dxc4 {[%clk 0:00:18.7]} 29. Qe2 {[%clk 0:00:07.4]} 29... Bd5 {[%clk
0:00:15.7]} 30. Rfd1 {[%clk 0:00:06.7]} 30... Qc6 {[%clk 0:00:15.6]} 31. Rxc4
{[%clk 0:00:01.3]} 31... Bxc4 {[%clk 0:00:15.4]} 32. Qxc4+ {[%clk 0:00:01.5]}
32... Kh8 {[%clk 0:00:15.1]} 33. Rd6 {[%clk 0:00:02]} 33... Qc8 {[%clk
0:00:13.7]} 34. b5 {[%clk 0:00:02]} 34... Qxf5 {[%clk 0:00:13.7]} 35. h3 {[%clk
0:00:02.2]} 35... Rac8 {[%clk 0:00:12.9]} 36. c6 {[%clk 0:00:01.9]} 36... Qb1+
{[%clk 0:00:12.1]} 37. Kh2 {[%clk 0:00:01.3]} 37... f5 {[%clk 0:00:11.5]} 38.
Rd7 {[%clk 0:00:01.3]} 38... f4 {[%clk 0:00:11.5]} 39. Bf2 {[%clk 0:00:01.7]}
39... Qb2 {[%clk 0:00:09.8]} 40. Bc5 {[%clk 0:00:01.8]} 40... Rfe8 {[%clk
0:00:09.1]} 41. Qe4 {[%clk 0:00:01.9]} 41... Rg8 {[%clk 0:00:09.1]} 42. a4
{[%clk 0:00:01.6]} 42... Qc3 {[%clk 0:00:08.3]} 43. Bd6 {[%clk 0:00:01.7]} 43...
Qg3+ {[%clk 0:00:07.5]} 44. Kh1 {[%clk 0:00:01.4]} 44... f3 {[%clk 0:00:07.2]}
45. Qxf3 {[%clk 0:00:01.4]} 45... Qxf3 {[%clk 0:00:07.5]} 46. gxf3 {[%clk
0:00:01.5]} 46... Rgf8 {[%clk 0:00:07.2]} 47. Bxe5 {[%clk 0:00:01.8]} 47... Rxf3
{[%clk 0:00:07.1]} 48. Rxg7 {[%clk 0:00:02]} 48... Re3 {[%clk 0:00:06.2]} 49.
Re7+ {[%clk 0:00:02.4]} 49... Kg8 {[%clk 0:00:05.7]} 50. c7 {[%clk 0:00:02.5]}
50... Kf8 {[%clk 0:00:05.3]} 51. Re6 {[%clk 0:00:02.2]} 51... Kf7 {[%clk
0:00:05]} 52. Rf6+ {[%clk 0:00:02.4]} 52... Ke7 {[%clk 0:00:05.4]} 53. Bd4
{[%clk 0:00:02.6]} 53... Rd3 {[%clk 0:00:04.9]} 54. Rf4 {[%clk 0:00:02.6]} 54...
Kd6 {[%clk 0:00:04.3]} 55. Rh4 {[%clk 0:00:02.4]} 55... Rxc7 {[%clk 0:00:04.2]}
56. Rh6+ {[%clk 0:00:01.7]} 56... Kd5 {[%clk 0:00:04.6]} 0-1

[Event "*** Titled Tuesday Blitz"]
[Site "Chess.com"]
[Date "2021.02.02"]
[Round "10"]
[White "EfrenRamos1"]
[Black "bylavochka"]
[Result "1-0"]
[WhiteElo "2260"]
[BlackElo "2096"]
[TimeControl "180+1"]
[EndTime "11:57:23 PST"]
[Termination "EfrenRamos1 won on time"]

1. e4 {[%clk 0:02:54.6]} 1... c5 {[%clk 0:02:59.4]} 2. Nc3 {[%clk 0:02:52.2]}
2... Nc6 {[%clk 0:02:57.5]} 3. Bb5 {[%clk 0:02:47.3]} 3... g6 {[%clk 0:02:56.1]}
4. Bxc6 {[%clk 0:02:44.7]} 4... bxc6 {[%clk 0:02:55.8]} 5. d4 {[%clk 0:02:45.6]}
5... cxd4 {[%clk 0:02:47.7]} 6. Qxd4 {[%clk 0:02:46]} 6... Nf6 {[%clk
0:02:47.8]} 7. Be3 {[%clk 0:02:44.6]} 7... Bg7 {[%clk 0:02:47.2]} 8. Qd2 {[%clk
0:02:43.6]} 8... O-O {[%clk 0:02:43.5]} 9. f3 {[%clk 0:02:42.6]} 9... d6 {[%clk
0:02:35.5]} 10. Nge2 {[%clk 0:02:36.9]} 10... Qa5 {[%clk 0:02:34.2]} 11. O-O
{[%clk 0:02:34.7]} 11... Rb8 {[%clk 0:02:27.9]} 12. Rab1 {[%clk 0:02:27.8]}
12... Nd7 {[%clk 0:02:24.6]} 13. Nd5 {[%clk 0:02:22.7]} 13... Qd8 {[%clk
0:02:13.9]} 14. Ndc3 {[%clk 0:02:21.6]} 14... Qa5 {[%clk 0:02:08.9]} 15. b4
{[%clk 0:02:05]} 15... Qa6 {[%clk 0:01:42.1]} 16. a4 {[%clk 0:01:33.5]} 16...
Ne5 {[%clk 0:01:38.1]} 17. b5 {[%clk 0:01:24.3]} 17... cxb5 {[%clk 0:00:49.2]}
18. axb5 {[%clk 0:01:25.2]} 18... Qb7 {[%clk 0:00:42.5]} 19. Qd5 {[%clk
0:01:21.1]} 19... Be6 {[%clk 0:00:38.7]} 20. Qxb7 {[%clk 0:01:16.3]} 20... Rxb7
{[%clk 0:00:39.6]} 21. Nd4 {[%clk 0:01:14.6]} 21... Nc4 {[%clk 0:00:36.4]} 22.
Kf2 {[%clk 0:01:00.7]} 22... Nxe3 {[%clk 0:00:31.4]} 23. Kxe3 {[%clk 0:00:57.8]}
23... Rc8 {[%clk 0:00:28.9]} 24. Nd5 {[%clk 0:00:47.8]} 24... Bxd5 {[%clk
0:00:23.3]} 25. exd5 {[%clk 0:00:47.2]} 25... Rc3+ {[%clk 0:00:20.1]} 26. Ke4
{[%clk 0:00:36.2]} 26... f5+ {[%clk 0:00:20.1]} 27. Nxf5 {[%clk 0:00:36.2]}
27... gxf5+ {[%clk 0:00:21]} 28. Kxf5 {[%clk 0:00:36.4]} 28... Rxc2 {[%clk
0:00:20.2]} 29. g4 {[%clk 0:00:29.4]} 29... Rd2 {[%clk 0:00:15.9]} 30. Ke6
{[%clk 0:00:27]} 30... Re2+ {[%clk 0:00:15.9]} 31. Kf5 {[%clk 0:00:25.8]} 31...
Re5+ {[%clk 0:00:16.1]} 32. Kf4 {[%clk 0:00:24.6]} 32... Rxd5 {[%clk 0:00:16.3]}
33. Rfc1 {[%clk 0:00:23.1]} 33... Rdxb5 {[%clk 0:00:14.7]} 34. Rc8+ {[%clk
0:00:21.7]} 34... Kf7 {[%clk 0:00:14.4]} 35. Rxb5 {[%clk 0:00:22.1]} 35... Rxb5
{[%clk 0:00:14.4]} 36. Rc7 {[%clk 0:00:23]} 36... a5 {[%clk 0:00:13.4]} 37. g5
{[%clk 0:00:22.3]} 37... h6 {[%clk 0:00:11.8]} 38. h4 {[%clk 0:00:20.7]} 38...
hxg5+ {[%clk 0:00:11.5]} 39. hxg5 {[%clk 0:00:21.6]} 39... a4 {[%clk 0:00:07.8]}
40. Ra7 {[%clk 0:00:20.5]} 40... Rb4+ {[%clk 0:00:07.5]} 41. Kg3 {[%clk
0:00:20.9]} 41... Bb2 {[%clk 0:00:06.8]} 42. f4 {[%clk 0:00:19.7]} 42... a3
{[%clk 0:00:07]} 43. f5 {[%clk 0:00:19.6]} 43... Rb5 {[%clk 0:00:06.5]} 44. Kg4
{[%clk 0:00:18.3]} 44... Rb4+ {[%clk 0:00:06.3]} 45. Kh5 {[%clk 0:00:18.6]}
45... Bc1 {[%clk 0:00:04.4]} 46. f6 {[%clk 0:00:16.6]} 46... Re4 {[%clk
0:00:03.4]} 47. Rc7 {[%clk 0:00:13.3]} 47... a2 {[%clk 0:00:02.7]} 48. Rxc1
{[%clk 0:00:10.9]} 48... exf6 {[%clk 0:00:03.1]} 49. g6+ {[%clk 0:00:10.2]}
49... Kg8 {[%clk 0:00:02.2]} 50. Rc8+ {[%clk 0:00:10.2]} 50... Kg7 {[%clk
0:00:02]} 51. Rc7+ {[%clk 0:00:10.6]} 51... Kf8 {[%clk 0:00:02.1]} 52. Rc8+
{[%clk 0:00:10.5]} 52... Kg7 {[%clk 0:00:02.4]} 53. Rc7+ {[%clk 0:00:10.2]}
53... Kg8 {[%clk 0:00:02.5]} 54. Ra7 {[%clk 0:00:08.5]} 54... Re2 {[%clk
0:00:01.6]} 55. Kg4 {[%clk 0:00:06.9]} 55... Rg2+ {[%clk 0:00:01.2]} 56. Kf5
{[%clk 0:00:07.1]} 56... Rf2+ {[%clk 0:00:01.2]} 57. Ke6 {[%clk 0:00:06.2]} 1-0

[Event "*** Titled Tuesday Blitz"]
[Site "Chess.com"]
[Date "2021.02.02"]
[Round "10"]
[White "Witik"]
[Black "maximnovik"]
[Result "0-1"]
[WhiteElo "2745"]
[BlackElo "2579"]
[TimeControl "180+1"]
[EndTime "11:57:24 PST"]
[Termination "maximnovik won by resignation"]

1. e4 {[%clk 0:03:00.9]} 1... c6 {[%clk 0:02:58.9]} 2. d4 {[%clk 0:03:00.7]}
2... d5 {[%clk 0:02:59.3]} 3. e5 {[%clk 0:03:01.3]} 3... Bf5 {[%clk 0:02:58.8]}
4. h4 {[%clk 0:03:01.9]} 4... h6 {[%clk 0:02:58.5]} 5. g4 {[%clk 0:03:01.2]}
5... Bd7 {[%clk 0:02:58.9]} 6. Nd2 {[%clk 0:03:01]} 6... c5 {[%clk 0:02:53.7]}
7. dxc5 {[%clk 0:03:00.2]} 7... Nc6 {[%clk 0:02:53.6]} 8. f4 {[%clk 0:02:50.7]}
8... h5 {[%clk 0:02:53.2]} 9. gxh5 {[%clk 0:02:48.4]} 9... Nh6 {[%clk
0:02:50.2]} 10. Nb3 {[%clk 0:02:45.7]} 10... Bf5 {[%clk 0:02:37.7]} 11. Bb5
{[%clk 0:02:02.7]} 11... e6 {[%clk 0:02:35.6]} 12. Be3 {[%clk 0:01:56.2]} 12...
Be4 {[%clk 0:02:29.1]} 13. Nf3 {[%clk 0:01:51.5]} 13... Nf5 {[%clk 0:02:29]} 14.
Bf2 {[%clk 0:01:50.2]} 14... Rxh5 {[%clk 0:02:15.3]} 15. Qe2 {[%clk 0:01:46.1]}
15... a6 {[%clk 0:02:09]} 16. Bd3 {[%clk 0:01:32.9]} 16... Bxd3 {[%clk
0:02:05.3]} 17. Qxd3 {[%clk 0:01:26.7]} 17... g6 {[%clk 0:01:44.1]} 18. O-O-O
{[%clk 0:01:17.8]} 18... Bh6 {[%clk 0:01:43]} 19. Ng5 {[%clk 0:01:15.2]} 19...
Bxg5 {[%clk 0:01:36]} 20. hxg5 {[%clk 0:01:13.8]} 20... Rxh1 {[%clk 0:01:26.3]}
21. Rxh1 {[%clk 0:01:13.4]} 21... Ke7 {[%clk 0:01:26.5]} 22. a3 {[%clk
0:00:40.4]} 22... Qd7 {[%clk 0:01:26.1]} 23. Rd1 {[%clk 0:00:30.4]} 23... Rh8
{[%clk 0:01:24.1]} 24. c4 {[%clk 0:00:29.4]} 24... d4 {[%clk 0:01:18.8]} 25. Qe4
{[%clk 0:00:25]} 25... Rh2 {[%clk 0:00:36.2]} 26. Bg1 {[%clk 0:00:24.7]} 26...
Rh3 {[%clk 0:00:29.4]} 27. Kc2 {[%clk 0:00:18.6]} 27... Kf8 {[%clk 0:00:28.5]}
28. Nc1 {[%clk 0:00:18.5]} 28... a5 {[%clk 0:00:25.7]} 29. Re1 {[%clk
0:00:15.4]} 29... Nce7 {[%clk 0:00:19.4]} 30. Nd3 {[%clk 0:00:15.1]} 30... Qa4+
{[%clk 0:00:18.9]} 31. Kd2 {[%clk 0:00:11.5]} 31... Qxc4 {[%clk 0:00:18.8]} 32.
Rc1 {[%clk 0:00:09.8]} 32... Qb3 {[%clk 0:00:17.6]} 33. Bf2 {[%clk 0:00:08.3]}
33... Nd5 {[%clk 0:00:16.8]} 34. Bxd4 {[%clk 0:00:04.9]} 34... Rh2+ {[%clk
0:00:13.7]} 35. Bf2 {[%clk 0:00:05]} 35... Rh3 {[%clk 0:00:09.7]} 36. Qc4 {[%clk
0:00:04.5]} 36... Rxd3+ {[%clk 0:00:07.8]} 37. Qxd3 {[%clk 0:00:04.5]} 37...
Qxb2+ {[%clk 0:00:07.9]} 38. Rc2 {[%clk 0:00:04.6]} 38... Qa1 {[%clk 0:00:08.1]}
39. c6 {[%clk 0:00:04.9]} 39... bxc6 {[%clk 0:00:07.5]} 40. Rxc6 {[%clk
0:00:05]} 40... Kg7 {[%clk 0:00:07.5]} 41. Rc2 {[%clk 0:00:05]} 41... Qh1 {[%clk
0:00:06.5]} 42. Qe2 {[%clk 0:00:04.6]} 42... Qh2 {[%clk 0:00:06.4]} 43. Bc5
{[%clk 0:00:04.2]} 43... Qxf4+ {[%clk 0:00:05.8]} 44. Ke1 {[%clk 0:00:02.9]}
44... Ng3 {[%clk 0:00:04.5]} 45. Qf2 {[%clk 0:00:01.9]} 45... Qe4+ {[%clk
0:00:04.7]} 46. Kd1 {[%clk 0:00:02.4]} 46... Nf5 {[%clk 0:00:03.8]} 47. Kc1
{[%clk 0:00:01.9]} 47... Nf4 {[%clk 0:00:02.2]} 48. Bb6 {[%clk 0:00:01.8]} 48...
Nd3+ {[%clk 0:00:02.2]} 49. Kd2 {[%clk 0:00:01.7]} 49... Nxf2 {[%clk 0:00:02.7]}
50. Bxf2 {[%clk 0:00:02.1]} 50... Qd5+ {[%clk 0:00:03.2]} 51. Ke1 {[%clk
0:00:03]} 51... Qxe5+ {[%clk 0:00:03.6]} 52. Re2 {[%clk 0:00:03.9]} 52... Qf4
{[%clk 0:00:03.6]} 53. Be3 {[%clk 0:00:03.9]} 53... Qf3 {[%clk 0:00:03.2]} 54.
Kd2 {[%clk 0:00:04.7]} 54... Nxe3 {[%clk 0:00:02.9]} 55. Rxe3 {[%clk 0:00:05.6]}
55... Qf4 {[%clk 0:00:03.4]} 56. Kd3 {[%clk 0:00:05.9]} 56... Qxg5 {[%clk
0:00:03.8]} 57. Re4 {[%clk 0:00:06.8]} 57... Qd5+ {[%clk 0:00:03.9]} 58. Rd4
{[%clk 0:00:07.2]} 58... Qb3+ {[%clk 0:00:04.1]} 59. Ke4 {[%clk 0:00:07.4]}
59... Qxa3 {[%clk 0:00:04.6]} 0-1

[Event "*** Titled Tuesday Blitz"]
[Site "Chess.com"]
[Date "2021.02.02"]
[Round "10"]
[White "Goryachkina"]
[Black "Bastiandash"]
[Result "1-0"]
[WhiteElo "2660"]
[BlackElo "2489"]
[TimeControl "180+1"]
[EndTime "11:57:25 PST"]
[Termination "Goryachkina won by resignation"]

1. e4 {[%clk 0:02:59.8]} 1... c6 {[%clk 0:02:56.1]} 2. d4 {[%clk 0:02:59.4]}
2... d5 {[%clk 0:02:56.4]} 3. e5 {[%clk 0:02:59.6]} 3... Bf5 {[%clk 0:02:52.1]}
4. Nf3 {[%clk 0:02:59.4]} 4... e6 {[%clk 0:02:51.2]} 5. Be2 {[%clk 0:02:59.3]}
5... h6 {[%clk 0:02:46.3]} 6. O-O {[%clk 0:02:58.8]} 6... Ne7 {[%clk 0:02:46.9]}
7. Nbd2 {[%clk 0:02:58.4]} 7... Nd7 {[%clk 0:02:46.7]} 8. Nb3 {[%clk 0:02:58.3]}
8... c5 {[%clk 0:02:31.8]} 9. Nxc5 {[%clk 0:02:47.6]} 9... Nxc5 {[%clk
0:02:30.4]} 10. dxc5 {[%clk 0:02:47.8]} 10... Nc6 {[%clk 0:02:29.4]} 11. Be3
{[%clk 0:02:33.5]} 11... Qc7 {[%clk 0:02:20.2]} 12. c3 {[%clk 0:02:15.5]} 12...
Bg4 {[%clk 0:01:28.3]} 13. Nd4 {[%clk 0:01:49.4]} 13... Bxe2 {[%clk 0:01:22.8]}
14. Qxe2 {[%clk 0:01:49.1]} 14... Qxe5 {[%clk 0:01:13.6]} 15. Nxc6 {[%clk
0:01:04.9]} 15... bxc6 {[%clk 0:01:14.5]} 16. Qa6 {[%clk 0:01:03.6]} 16... Qc7
{[%clk 0:01:13.3]} 17. b4 {[%clk 0:01:00.5]} 17... Be7 {[%clk 0:01:08.3]} 18.
Bf4 {[%clk 0:00:56.7]} 18... Qd7 {[%clk 0:01:03.5]} 19. b5 {[%clk 0:00:50.6]}
19... cxb5 {[%clk 0:00:23.9]} 20. c6 {[%clk 0:00:50.5]} 20... Qc8 {[%clk
0:00:24.1]} 21. Qxb5 {[%clk 0:00:50]} 21... O-O {[%clk 0:00:24.2]} 22. Rad1
{[%clk 0:00:40.5]} 22... Bf6 {[%clk 0:00:23.1]} 23. c4 {[%clk 0:00:37.8]} 23...
e5 {[%clk 0:00:18.9]} 24. Bg3 {[%clk 0:00:37.7]} 24... Rb8 {[%clk 0:00:15.7]}
25. Qxd5 {[%clk 0:00:36.5]} 25... Rb6 {[%clk 0:00:15.8]} 26. Bxe5 {[%clk
0:00:32.1]} 26... Bxe5 {[%clk 0:00:16.7]} 27. Qxe5 {[%clk 0:00:32.2]} 27... Rxc6
{[%clk 0:00:17.1]} 28. Qd4 {[%clk 0:00:29.6]} 28... Rxc4 {[%clk 0:00:13.1]} 29.
Qxa7 {[%clk 0:00:29.6]} 29... Rc2 {[%clk 0:00:13.7]} 30. a4 {[%clk 0:00:25.9]}
30... Ra2 {[%clk 0:00:12.3]} 31. Qd4 {[%clk 0:00:19.9]} 31... Qa6 {[%clk
0:00:08.9]} 32. Ra1 {[%clk 0:00:18.4]} 32... Rxa1 {[%clk 0:00:07.2]} 33. Rxa1
{[%clk 0:00:18.4]} 33... Rb8 {[%clk 0:00:06.7]} 34. h3 {[%clk 0:00:17.6]} 34...
Qc6 {[%clk 0:00:04.9]} 35. a5 {[%clk 0:00:16.8]} 35... Ra8 {[%clk 0:00:05.2]}
36. Qb4 {[%clk 0:00:14.5]} 36... Ra6 {[%clk 0:00:05]} 37. Rd1 {[%clk 0:00:13.5]}
37... Kh7 {[%clk 0:00:03.4]} 38. Qb1+ {[%clk 0:00:09.9]} 38... g6 {[%clk
0:00:03.1]} 39. Qb4 {[%clk 0:00:09.7]} 39... Qf6 {[%clk 0:00:02.9]} 40. Qb5
{[%clk 0:00:09.3]} 40... Rd6 {[%clk 0:00:02.9]} 41. Rxd6 {[%clk 0:00:08.6]}
41... Qxd6 {[%clk 0:00:03.8]} 42. a6 {[%clk 0:00:09]} 42... Qd1+ {[%clk
0:00:04]} 43. Kh2 {[%clk 0:00:09.5]} 43... Qd6+ {[%clk 0:00:04.5]} 44. g3 {[%clk
0:00:09.9]} 44... Qd2 {[%clk 0:00:04.9]} 45. Qb6 {[%clk 0:00:09.5]} 45... Qa2
{[%clk 0:00:03.8]} 46. a7 {[%clk 0:00:09.7]} 46... Kg7 {[%clk 0:00:04.3]} 47.
Kg2 {[%clk 0:00:08.3]} 47... Qd5+ {[%clk 0:00:04.5]} 48. Kg1 {[%clk 0:00:08.7]}
48... Qd1+ {[%clk 0:00:04.3]} 49. Kh2 {[%clk 0:00:09]} 49... Qf3 {[%clk
0:00:04.4]} 50. Qd4+ {[%clk 0:00:08.3]} 50... Kh7 {[%clk 0:00:04.4]} 51. Qf4
{[%clk 0:00:08]} 51... Qb7 {[%clk 0:00:03.5]} 52. Qa4 {[%clk 0:00:07.8]} 52...
Qf3 {[%clk 0:00:03.2]} 53. a8=Q {[%clk 0:00:07.7]} 53... Qxf2+ {[%clk
0:00:03.7]} 54. Qg2 {[%clk 0:00:07.9]} 54... Qf6 {[%clk 0:00:04.6]} 55. Qf4
{[%clk 0:00:07.7]} 55... Qe6 {[%clk 0:00:04.7]} 56. Qgf2 {[%clk 0:00:08.1]}
56... Kg7 {[%clk 0:00:05.1]} 57. Q4d4+ {[%clk 0:00:08.5]} 57... Kh7 {[%clk
0:00:05.4]} 58. Qdf6 {[%clk 0:00:08.8]} 58... Qxf6 {[%clk 0:00:03.9]} 59. Qxf6
{[%clk 0:00:08.6]} 59... Kg8 {[%clk 0:00:04.1]} 60. h4 {[%clk 0:00:08.4]} 1-0